fUST/lending_fUST_20250731
["ID","MTS","AMOUNT","RATE_DAILY","PERIOD"]
[376231323,1753900250423,-1688.33,0.00022015,2]
[376231325,1753900250432,-505.46,0.00022015,2]
[376231327,1753900250441,-165.6,0.00022015,2]
[376231330,1753900250451,-603.49,0.00022015,2]
[376231332,1753900250460,-460.0,0.00022015,2]
[376231334,1753900250469,-516.3,0.00022015,2]
[376231336,1753900250478,-755.9,0.00022015,2]
[376231337,1753900250487,-991.07,0.00022015,2]
[376231340,1753900250497,-944.19,0.00022015,2]
[376231342,1753900250505,-460.0,0.00022015,2]
[376231344,1753900250514,-460.0,0.00022015,2]
[376231346,1753900250523,-293.76640164,0.00022072,6]
[376231348,1753900250534,-460.0,0.00022161,2]
[376231350,1753900250543,-460.0,0.00022161,2]
[376231351,1753900250551,-460.0,0.00022161,2]
[376231354,1753900250561,-1040.49,0.00022161,2]
[376231356,1753900250571,-460.0,0.00022161,2]
[376231357,1753900250581,-460.0,0.00022161,2]
[376231360,1753900250591,-460.0,0.00022161,2]
[376231362,1753900250600,-460.0,0.00022162,2]
[376231364,1753900250609,-542.0252528,0.00022162,2]
[376231366,1753900250619,-401.39932198,0.00022162,2]
[376231368,1753900250628,-460.0,0.00022162,2]
[376231370,1753900250637,-460.0,0.00022162,2]
[376231372,1753900250646,-491.72,0.00022162,2]
[376231374,1753900250655,-1209.75,0.00022162,2]
[376231376,1753900250664,-1693.51,0.00022163,2]
[376231378,1753900250673,-460.0,0.00022163,2]
[376231380,1753900250682,-460.0,0.00022163,2]
[376231382,1753900250691,-843.12,0.00022163,2]
[376231384,1753900250700,-544.37,0.00022163,2]
[376231386,1753900250709,-214.87999826,0.0002226,3]
[376231388,1753900250718,-460.0,0.0002226,2]
[376231390,1753900250727,-480.01,0.0002226,2]
[376231392,1753900250736,-2663.22,0.00022289,2]
[376231394,1753900250745,-460.0,0.00022289,2]
[376231396,1753900250754,-460.0,0.00022289,2]
[376231398,1753900250763,-1688.33,0.00022289,2]
[376231400,1753900250772,-505.46,0.00022289,2]
[376231402,1753900250782,-603.49,0.00022289,2]
[376231404,1753900250791,-596.44,0.00022289,2]
[376231406,1753900250800,-755.9,0.00022289,2]
[376231408,1753900250809,-991.07,0.00022289,2]
[376231410,1753900250818,-944.19,0.00022289,2]
[376231412,1753900250827,-381.32,0.00022289,2]
[376231414,1753900250835,-245.16,0.00022289,2]
[376231416,1753900250844,-293.76640164,0.00022314,7]
[376231418,1753900250853,-2000.0,0.00022366,2]
[376231420,1753900250862,-150.0,0.000224,2]
[376231422,1753900250871,-460.0,0.00022435,2]
[376231424,1753900250880,-460.0,0.00022435,2]
[376231426,1753900250890,-460.0,0.00022435,2]
[376231428,1753900250899,-1040.49,0.00022435,2]
[376231429,1753900250908,-331.79,0.00022435,2]
[376231431,1753900250917,-460.0,0.00022435,2]
[376231433,1753900250926,-556.28,0.00022435,2]
[376231435,1753900250935,-460.0,0.00022436,2]
[376231437,1753900250944,-1209.75,0.00022436,2]
[376231439,1753900250953,-1693.51,0.00022437,2]
[376231442,1753900250962,-460.0,0.00022437,2]
[376231444,1753900250971,-460.0,0.00022437,2]
[376231445,1753900250980,-843.12,0.00022437,2]
[376231448,1753900250990,-4000.0,0.00022449,4]
[376231450,1753900250999,-460.0,0.00022457,2]
[376231452,1753900251009,-762.9374108,0.00022464,2]
[376231454,1753900251018,-2719.26098149,0.00022468,2]
[376231456,1753900251027,-2000.0,0.00022479,2]
[376231458,1753900251038,-300.0,0.00022521,2]
[376231460,1753900251048,-460.0,0.00022534,2]
[376231462,1753900251057,-480.01,0.00022534,2]
[376231464,1753900251066,-293.76640164,0.00022555,7]
[376231466,1753900251075,-2663.22,0.00022563,2]
[376231468,1753900251084,-460.0,0.00022563,2]
[376231470,1753900251093,-460.0,0.00022563,2]
[376231472,1753900251104,-1688.33,0.00022563,2]
[376231474,1753900251113,-505.46,0.00022563,2]
[376231476,1753900251123,-603.49,0.00022563,2]
[376231478,1753900251132,-755.9,0.00022563,2]
[376231480,1753900251141,-991.07,0.00022563,2]
[376231482,1753900251151,-944.19,0.00022563,2]
[376231484,1753900251161,-916.06,0.000226,2]
[376231486,1753900251172,-460.0,0.00022709,2]
[376231488,1753900251186,-460.0,0.00022709,2]
[376231490,1753900251196,-460.0,0.00022709,2]
[376231492,1753900251206,-1040.49,0.00022709,2]
[376231494,1753900251215,-460.0,0.00022709,2]
[376231496,1753900251224,-460.0,0.0002271,2]
[376231498,1753900251233,-1209.75,0.0002271,2]
[376231500,1753900251243,-1693.51,0.00022711,2]
[376231502,1753900251253,-460.0,0.00022711,2]
[376231504,1753900251262,-460.0,0.00022711,2]
[376231506,1753900251272,-843.12,0.00022711,2]
[376231508,1753900251282,-293.76640164,0.00022797,7]
[376231510,1753900251292,-826.07499999,0.00022808,2]
[376231512,1753900251301,-460.0,0.00022808,2]
[376231514,1753900251310,-480.01,0.00022808,2]
[376231516,1753900251319,-2663.22,0.00022837,2]
[376231518,1753900251328,-460.0,0.00022837,2]
[376231520,1753900251339,-460.0,0.00022837,2]
[376231522,1753900251348,-1688.33,0.00022837,2]
[376231524,1753900251357,-505.46,0.00022837,2]
[376231527,1753900251367,-603.49,0.00022837,2]
[376231529,1753900251376,-755.9,0.00022837,2]
[376231531,1753900251385,-991.07,0.00022837,2]
[376231533,1753900251394,-944.19,0.00022837,2]
[376231535,1753900251404,-420.0,0.00022887,2]
[376231536,1753900251413,-419.70348114,0.00022914,2]
[376231538,1753900251422,-970.0,0.00022974,2]
[376231541,1753900251432,-635.0,0.00022974,2]
[376231543,1753900251441,-407.0,0.00022974,2]
[376231545,1753900251450,-425.782,0.00022974,2]
[376231547,1753900251459,-2146.0,0.00022974,2]
[376231549,1753900251468,-526.94284714,0.0002298,2]
[376231551,1753900251477,-460.0,0.00022983,2]
[376231553,1753900251486,-276.72,0.00022983,2]
[376231554,1753900251496,-460.0,0.00022983,2]
[376231556,1753900251505,-1040.49,0.00022983,2]
[376231559,1753900251514,-460.0,0.00022983,2]
[376231560,1753900251523,-460.0,0.00022984,2]
[376231562,1753900251537,-1209.75,0.00022984,2]
[376231564,1753900251547,-1693.51,0.00022985,2]
[376231566,1753900251556,-460.0,0.00022985,2]
[376231569,1753900251565,-460.0,0.00022985,2]
[376231571,1753900251574,-843.12,0.00022985,2]
[376231573,1753900251584,-19249.51883003,0.00023,4]
[376231600,1753900251824,-460.0,0.00019696,2]
[376231602,1753900251833,-1025.21455135,0.00020098,2]
[376231604,1753900251844,-490.66197027,0.00020098,2]
[376231664,1753900268002,-310.26875273,0.00019275,2]
[376231665,1753900270706,-149.73124727,0.00019275,2]
[376231666,1753900270727,-310.26875273,0.00019275,2]
[376231667,1753900272351,-149.73124727,0.00019275,2]
[376231668,1753900272375,-310.26875273,0.00019275,2]
[376231669,1753900275140,-460.0,0.00019275,2]
[376231670,1753900277668,-62.03124727,0.00019275,2]
[376231671,1753900277689,-397.96875273,0.00019276,2]
[376231672,1753900279998,-62.03124727,0.00019276,2]
[376231673,1753900280022,-397.96875273,0.00019276,2]
[376231674,1753900281700,-62.03124727,0.00019276,2]
[376231675,1753900281722,-397.96875273,0.00019276,2]
[376231677,1753900285248,-460.0,0.00019275,2]
[376231685,1753900288389,-62.03124727,0.00019276,2]
[376231686,1753900288415,-184.01,0.00019276,2]
[376231687,1753900288441,-125.3433999,0.00019276,2]
[376231688,1753900290136,-334.6566001,0.00019276,2]
[376231689,1753900290160,-129.6133999,0.00019276,2]
[376231690,1753900293510,-330.3866001,0.00019276,2]
[376231691,1753900293533,-207.4633999,0.00019276,2]
[376231692,1753900295930,-252.5366001,0.00019276,2]
[376231693,1753900295952,-37.31540943,0.00019276,2]
[376231694,1753900299280,-422.68459057,0.00019276,2]
[376231695,1753900299306,63.8745834,0.00019275,2]
[376231703,1753900745939,182.822865,0.00013699,2]
[376231826,1753901431810,-177.26928291,0.00019174,2]
[376231828,1753901431820,-460.0,0.00019273,2]
[376231830,1753901431830,-460.0,0.00019273,2]
[376231832,1753901431839,-710.29,0.00019273,2]
[376231834,1753901431848,-300.0,0.00019273,2]
[376231836,1753901431857,-460.0,0.00019273,2]
[376231838,1753901431866,-460.0,0.00019273,2]
[376231839,1753901431876,-17131.46502804,0.00019274,2]
[376231842,1753901431887,-705.43574187,0.00019274,2]
[376231844,1753901431899,-30647.22270847,0.00019274,2]
[376231846,1753901431912,-460.0,0.00019274,2]
[376231848,1753901431922,-460.0,0.00019274,2]
[376231850,1753901431932,-460.0,0.00019274,2]
[376231852,1753901431942,-460.0,0.00019274,2]
[376231854,1753901431952,-460.0,0.00019274,2]
[376231857,1753901431968,-460.0,0.00019274,2]
[376231859,1753901431979,-460.0,0.00019274,2]
[376231861,1753901431989,-460.0,0.00019274,2]
[376231863,1753901431999,-1662.36,0.00019274,2]
[376231865,1753901432009,-460.0,0.00019274,2]
[376231867,1753901432019,-310.26875273,0.00019274,2]
[376231869,1753901432029,-460.0,0.00019274,2]
[376231871,1753901432039,-460.0,0.00019274,2]
[376231873,1753901432049,-371.38464717,0.00019274,2]
[376231875,1753901432059,-460.0,0.00019274,2]
[376231877,1753901432069,-460.0,0.00019274,2]
[376231879,1753901432079,-460.0,0.00019274,2]
[376231880,1753901432089,-460.0,0.00019274,2]
[376231883,1753901432099,-572.95,0.00019274,2]
[376231884,1753901432109,-460.0,0.00019274,2]
[376231887,1753901432120,-460.0,0.00019274,2]
[376231889,1753901432129,-410.63133996,0.00019274,2]
[376231890,1753901432140,-592.17,0.00019274,2]
[376231893,1753901432150,-460.0,0.00019274,2]
[376231895,1753901432160,-460.0,0.00019274,2]
[376231896,1753901432170,-460.0,0.00019274,2]
[376231899,1753901432181,-460.0,0.00019274,2]
[376231900,1753901432191,-460.0,0.00019274,2]
[376231903,1753901432201,-460.0,0.00019274,2]
[376231904,1753901432215,-460.0,0.00019274,2]
[376231907,1753901432225,-1056.95,0.00019274,2]
[376231908,1753901432235,-460.0,0.00019274,2]
[376231911,1753901432244,-460.0,0.00019274,2]
[376231912,1753901432254,-388.81990747,0.00019274,2]
[376231914,1753901432263,-460.0,0.00019274,2]
[376231916,1753901432273,-460.0,0.00019274,2]
[376231919,1753901432283,-460.0,0.00019274,2]
[376231920,1753901432292,-468.27,0.00019274,2]
[376231922,1753901432302,-460.0,0.00019274,2]
[376231924,1753901432312,-460.0,0.00019274,2]
[376231926,1753901432321,-365.08484645,0.00019274,2]
[376231928,1753901432331,-460.0,0.00019274,2]
[376231930,1753901432340,-460.0,0.00019274,2]
[376231932,1753901432349,-460.0,0.00019274,2]
[376231934,1753901432358,-460.0,0.00019274,2]
[376231936,1753901432369,-509.9,0.00019274,2]
[376231938,1753901432380,-460.0,0.00019274,2]
[376231941,1753901432390,-460.0,0.00019274,2]
[376231943,1753901432399,-460.0,0.00019274,2]
[376231945,1753901432409,-460.0,0.00019274,2]
[376231946,1753901432418,-460.0,0.00019274,2]
[376231948,1753901432427,-460.0,0.00019274,2]
[376231950,1753901432437,-514.42,0.00019274,2]
[376231952,1753901432446,-460.0,0.00019274,2]
[376231954,1753901432459,-460.0,0.00019274,2]
[376231957,1753901432470,-460.0,0.00019274,2]
[376231959,1753901432480,-294.31322084,0.00019274,2]
[376231961,1753901432490,-514.24929627,0.00019274,2]
[376231962,1753901432499,-675.24,0.00019274,2]
[376231963,1753901432508,-460.0,0.00019274,2]
[376231964,1753901432518,-460.0,0.00019274,2]
[376231965,1753901432529,-460.0,0.00019274,2]
[376231966,1753901432538,-460.0,0.00019274,2]
[376231967,1753901432548,-460.0,0.00019274,2]
[376231969,1753901432557,-460.0,0.00019274,2]
[376231971,1753901432567,-460.0,0.00019274,2]
[376231973,1753901432579,-460.0,0.00019274,2]
[376231975,1753901432588,-460.0,0.00019274,2]
[376231977,1753901432598,-460.0,0.00019274,2]
[376231979,1753901432608,-475.45596695,0.00019274,2]
[376231981,1753901432618,-460.0,0.00019274,2]
[376231983,1753901432628,-460.0,0.00019274,2]
[376231985,1753901432638,-460.0,0.00019274,2]
[376231987,1753901432648,-16.78730422,0.00019274,2]
[376231991,1753901432678,-443.21269578,0.00019274,2]
[376231993,1753901432690,-460.0,0.00019274,2]
[376231995,1753901432701,-108.95426322,0.00019275,2]
[376231998,1753901432733,-351.04573678,0.00019275,2]
[376232000,1753901432745,-460.0,0.00019275,2]
[376232003,1753901432756,-460.0,0.00019275,2]
[376232005,1753901432766,-460.0,0.00019275,2]
[376232007,1753901432777,-460.0,0.00019275,2]
[376232009,1753901432787,-460.0,0.00019275,2]
[376232011,1753901432797,-460.0,0.00019275,2]
[376232013,1753901432807,-460.0,0.00019275,2]
[376232015,1753901432816,-460.0,0.00019275,2]
[376232017,1753901432826,-460.0,0.00019275,2]
[376232019,1753901432836,-460.0,0.00019275,2]
[376232021,1753901432845,-460.0,0.00019275,2]
[376232023,1753901432855,-460.0,0.00019275,2]
[376232025,1753901432864,-460.0,0.00019275,2]
[376232027,1753901432874,-460.0,0.00019275,2]
[376232029,1753901432883,-460.0,0.00019275,2]
[376232031,1753901432893,-460.0,0.00019275,2]
[376232033,1753901432903,-460.0,0.00019275,2]
[376232035,1753901432912,-460.0,0.00019275,2]
[376232037,1753901432922,-460.0,0.00019275,2]
[376232039,1753901432931,-460.0,0.00019275,2]
[376232041,1753901432940,-460.0,0.00019275,2]
[376232043,1753901432950,-460.0,0.00019275,2]
[376232045,1753901432963,-542.13910376,0.00019275,2]
[376232047,1753901432973,-460.0,0.00019275,2]
[376232049,1753901432982,-460.0,0.00019275,2]
[376232051,1753901432992,-460.0,0.00019275,2]
[376232053,1753901433001,-592.75070373,0.00019275,2]
[376232055,1753901433011,-460.0,0.00019275,2]
[376232057,1753901433020,-460.0,0.00019275,2]
[376232059,1753901433030,-460.0,0.00019275,2]
[376232061,1753901433040,-460.0,0.00019275,2]
[376232063,1753901433050,-460.0,0.00019275,2]
[376232065,1753901433060,-460.0,0.00019275,2]
[376232067,1753901433070,-460.0,0.00019275,2]
[376232085,1753901433231,-460.0,0.00019275,2]
[376232087,1753901433242,-460.0,0.00019275,2]
[376232089,1753901433260,-460.0,0.00019275,2]
[376232092,1753901433275,-593.12,0.00019276,2]
[376232094,1753901433286,-460.0,0.00019276,2]
[376232096,1753901433297,-460.0,0.00019276,2]
[376232098,1753901433307,-460.0,0.00019276,2]
[376232100,1753901433318,-460.0,0.00019276,2]
[376232102,1753901433328,-257.88237057,0.00019276,2]
[376232104,1753901433339,-460.0,0.00019276,2]
[376232106,1753901433349,-460.0,0.00019276,2]
[376232108,1753901433360,-460.0,0.00019276,2]
[376232111,1753901433372,-1601.69,0.00019276,2]
[376232113,1753901433384,-537.85159757,0.0001945,2]
[376232115,1753901433395,-214.87,0.0001954,3]
[376232117,1753901433405,-644.63,0.0001954,3]
[376232119,1753901433416,-460.0,0.00019547,2]
[376232121,1753901433427,-460.0,0.00019547,2]
[376232123,1753901433438,-710.29,0.00019547,2]
[376232125,1753901433448,-460.0,0.00019547,2]
[376232127,1753901433463,-460.0,0.00019547,2]
[376232129,1753901433475,-460.0,0.00019548,2]
[376232131,1753901433486,-460.0,0.00019548,2]
[376232133,1753901433497,-460.0,0.00019548,2]
[376232135,1753901433508,-460.0,0.00019548,2]
[376232137,1753901433519,-460.0,0.00019548,2]
[376232140,1753901433530,-460.0,0.00019548,2]
[376232142,1753901433540,-1662.36,0.00019548,2]
[376232144,1753901433550,-460.0,0.00019548,2]
[376232146,1753901433560,-529.69,0.00019548,2]
[376232148,1753901433571,-483.86,0.00019548,2]
[376232150,1753901433581,-592.17,0.00019548,2]
[376232152,1753901433594,-460.0,0.00019548,2]
[376232154,1753901433603,-460.0,0.00019548,2]
[376232156,1753901433613,-460.0,0.00019548,2]
[376232158,1753901433623,-460.0,0.00019548,2]
[376232160,1753901433635,-460.0,0.00019548,2]
[376232162,1753901433644,-460.0,0.00019548,2]
[376232164,1753901433654,-1056.95,0.00019548,2]
[376232166,1753901433666,-460.0,0.00019548,2]
[376232168,1753901433677,-460.0,0.00019548,2]
[376232170,1753901433688,-555.00328478,0.00019548,2]
[376232172,1753901433698,-460.0,0.00019548,2]
[376232174,1753901433712,-460.0,0.00019548,2]
[376232176,1753901433722,-460.0,0.00019548,2]
[376232178,1753901433731,-460.0,0.00019548,2]
[376232180,1753901433743,-460.0,0.00019548,2]
[376232182,1753901433753,-460.0,0.00019548,2]
[376232184,1753901433763,-509.9,0.00019548,2]
[376232186,1753901433773,-485.53,0.00019548,2]
[376232188,1753901433783,-460.0,0.00019548,2]
[376232190,1753901433793,-460.0,0.00019548,2]
[376232192,1753901433803,-460.0,0.00019548,2]
[376232194,1753901433813,-460.0,0.00019548,2]
[376232196,1753901433822,-460.0,0.00019548,2]
[376232198,1753901433833,-514.42,0.00019548,2]
[376232200,1753901433843,-304.12,0.00019548,2]
[376232202,1753901433852,-460.0,0.00019548,2]
[376232204,1753901433862,-675.24,0.00019548,2]
[376232206,1753901433871,-460.0,0.00019548,2]
[376232209,1753901433881,-460.0,0.00019548,2]
[376232210,1753901433891,-460.0,0.00019548,2]
[376232212,1753901433901,-460.0,0.00019548,2]
[376232214,1753901433910,-460.0,0.00019548,2]
[376232216,1753901433920,-460.0,0.00019548,2]
[376232218,1753901433930,-460.0,0.00019548,2]
[376232220,1753901433940,-460.0,0.00019548,2]
[376232222,1753901433953,-460.0,0.00019548,2]
[376232224,1753901433974,-460.0,0.00019548,2]
[376232226,1753901433990,-460.0,0.00019549,2]
[376232228,1753901434000,-460.0,0.00019549,2]
[376232229,1753901434010,-460.0,0.00019549,2]
[376232230,1753901434020,-460.0,0.00019549,2]
[376232231,1753901434030,-460.0,0.00019549,2]
[376232232,1753901434040,-460.0,0.00019549,2]
[376232233,1753901434050,-460.0,0.00019549,2]
[376232234,1753901434060,-460.0,0.00019549,2]
[376232235,1753901434070,-460.0,0.00019549,2]
[376232236,1753901434080,-460.0,0.00019549,2]
[376232237,1753901434090,-460.0,0.00019549,2]
[376232238,1753901434099,-460.0,0.00019549,2]
[376232239,1753901434109,-460.0,0.00019549,2]
[376232240,1753901434118,-460.0,0.00019549,2]
[376232241,1753901434128,-460.0,0.00019549,2]
[376232242,1753901434138,-460.0,0.00019549,2]
[376232243,1753901434148,-460.0,0.00019549,2]
[376232244,1753901434158,-460.0,0.00019549,2]
[376232245,1753901434169,-460.0,0.00019549,2]
[376232246,1753901434190,-460.0,0.00019549,2]
[376232247,1753901434201,-460.0,0.00019549,2]
[376232248,1753901434216,-460.0,0.00019549,2]
[376232249,1753901434227,-460.0,0.00019549,2]
[376232250,1753901434238,-232.6598706,0.00019549,2]
[376232251,1753901434249,-460.0,0.00019549,2]
[376232252,1753901434259,-460.0,0.00019549,2]
[376232253,1753901434269,-460.0,0.00019549,2]
[376232254,1753901434280,-460.0,0.00019549,2]
[376232255,1753901434290,-460.0,0.00019549,2]
[376232256,1753901434300,-460.0,0.00019549,2]
[376232257,1753901434310,-593.12,0.0001955,2]
[376232258,1753901434320,-460.0,0.0001955,2]
[376232259,1753901434330,-538.74576519,0.0001955,2]
[376232260,1753901434341,-265.84519679,0.0001955,2]
[376232261,1753901434352,-460.0,0.0001955,2]
[376232262,1753901434363,-460.0,0.0001955,2]
[376232263,1753901434373,-460.0,0.0001955,2]
[376232264,1753901434383,-1601.69,0.0001955,2]
[376232265,1753901434392,-500.0,0.00019573,2]
[376232266,1753901434402,-500.0,0.00019573,2]
[376232267,1753901434412,-200.0,0.00019658,15]
[376232268,1753901434423,-200.0,0.00019658,15]
[376232269,1753901434432,-200.0,0.00019658,15]
[376232270,1753901434442,-200.0,0.00019658,15]
[376232271,1753901434452,-200.0,0.00019658,15]
[376232272,1753901434465,-200.0,0.00019658,15]
[376232273,1753901434475,-200.0,0.00019658,15]
[376232274,1753901434485,-200.0,0.00019658,15]
[376232275,1753901434496,-644.00130831,0.00019661,2]
[376232276,1753901434507,-460.0,0.00019695,2]
[376232278,1753901434518,-721.0,0.00019695,2]
[376232280,1753901434528,-460.0,0.00019695,2]
[376232282,1753901434540,-460.0,0.00019695,2]
[376232284,1753901434550,-460.0,0.00019695,2]
[376232286,1753901434561,-460.0,0.00019695,2]
[376232287,1753901434576,-460.0,0.00019696,2]
[376232288,1753901434586,-460.0,0.00019696,2]
[376232289,1753901434597,-460.0,0.00019696,2]
[376232290,1753901434607,-460.0,0.00019821,2]
[376232291,1753901434617,-460.0,0.00019821,2]
[376232292,1753901434628,-710.29,0.00019821,2]
[376232293,1753901434638,-460.0,0.00019822,2]
[376232294,1753901434648,-460.0,0.00019822,2]
[376232295,1753901434657,-460.0,0.00019822,2]
[376232296,1753901434667,-1662.36,0.00019822,2]
[376232297,1753901434676,-460.0,0.00019822,2]
[376232298,1753901434686,-592.17,0.00019822,2]
[376232299,1753901434696,-460.0,0.00019822,2]
[376232300,1753901434715,-460.0,0.00019822,2]
[376232301,1753901434729,-460.0,0.00019822,2]
[376232302,1753901434742,-1056.95,0.00019822,2]
[376232303,1753901434755,-460.0,0.00019822,2]
[376232304,1753901434768,-460.0,0.00019822,2]
[376232305,1753901434781,-460.0,0.00019822,2]
[376232306,1753901434792,-460.0,0.00019822,2]
[376232307,1753901434804,-460.0,0.00019822,2]
[376232308,1753901434815,-460.0,0.00019822,2]
[376232309,1753901434828,-509.9,0.00019822,2]
[376232310,1753901434841,-460.0,0.00019822,2]
[376232311,1753901434852,-460.0,0.00019822,2]
[376232312,1753901434864,-460.0,0.00019822,2]
[376232313,1753901434876,-460.0,0.00019822,2]
[376232314,1753901434888,-460.0,0.00019822,2]
[376232315,1753901434899,-514.42,0.00019822,2]
[376232316,1753901434911,-460.0,0.00019822,2]
[376232317,1753901434923,-675.24,0.00019822,2]
[376232318,1753901434934,-460.0,0.00019822,2]
[376232319,1753901434947,-460.0,0.00019822,2]
[376232320,1753901434961,-460.0,0.00019822,2]
[376232321,1753901434972,-460.0,0.00019822,2]
[376232322,1753901434984,-460.0,0.00019822,2]
[376232323,1753901434995,-460.0,0.00019822,2]
[376232324,1753901435007,-460.0,0.00019822,2]
[376232325,1753901435018,-567.98,0.00019822,2]
[376232326,1753901435029,-460.0,0.00019822,2]
[376232327,1753901435042,-460.0,0.00019823,2]
[376232328,1753901435053,-460.0,0.00019823,2]
[376232329,1753901435064,-275.01680734,0.00019823,2]
[376232330,1753901435075,-460.0,0.00019823,2]
[376232331,1753901435087,-460.0,0.00019823,2]
[376232332,1753901435099,-460.0,0.00019823,2]
[376232333,1753901435111,-460.0,0.00019823,2]
[376232334,1753901435122,-460.0,0.00019823,2]
[376232335,1753901435133,-460.0,0.00019823,2]
[376232336,1753901435145,-460.0,0.00019823,2]
[376232337,1753901435155,-593.12,0.00019824,2]
[376232338,1753901435166,-460.0,0.00019824,2]
[376232339,1753901435175,-460.0,0.00019824,2]
[376232340,1753901435186,-1601.69,0.00019824,2]
[376232341,1753901435196,-272.22985298,0.000199,2]
[376232342,1753901435211,-460.0,0.00019969,2]
[376232343,1753901435221,-721.0,0.00019969,2]
[376232344,1753901435233,-460.0,0.00019969,2]
[376232345,1753901435244,-460.0,0.00019969,2]
[376232346,1753901435255,-460.0,0.00019969,2]
[376232347,1753901435266,-461.92713244,0.00019969,2]
[376232348,1753901435278,-460.0,0.0001997,2]
[376232349,1753901435290,-460.0,0.0001997,2]
[376232350,1753901435302,-460.0,0.0001997,2]
[376232351,1753901435313,-424.11444795,0.00020022,2]
[376232352,1753901435325,-500.0,0.00020022,2]
[376232353,1753901435336,-465.79,0.00020095,2]
[376232354,1753901435347,-710.29,0.00020095,2]
[376232355,1753901435359,-460.0,0.00020096,2]
[376232356,1753901435371,-460.0,0.00020096,2]
[376232357,1753901435383,-1662.36,0.00020096,2]
[376232358,1753901435394,-592.17,0.00020096,2]
[376232359,1753901435404,-460.0,0.00020096,2]
[376232360,1753901435415,-310.29918415,0.00020096,2]
[376232361,1753901435425,-460.0,0.00020096,2]
[376232362,1753901435434,-1056.95,0.00020096,2]
[376232363,1753901435444,-460.0,0.00020096,2]
[376232364,1753901435455,-302.83,0.00020096,2]
[376232365,1753901435469,-460.0,0.00020096,2]
[376232366,1753901435481,-396.1254166,0.00020096,2]
[376232367,1753901435494,-460.0,0.00020096,2]
[376232368,1753901435506,-509.9,0.00020096,2]
[376232369,1753901435519,-460.0,0.00020096,2]
[376232370,1753901435530,-460.0,0.00020096,2]
[376232371,1753901435540,-460.0,0.00020096,2]
[376232372,1753901435550,-460.0,0.00020096,2]
[376232373,1753901435560,-514.42,0.00020096,2]
[376232374,1753901435574,-460.0,0.00020096,2]
[376232375,1753901435585,-675.24,0.00020096,2]
[376232376,1753901435596,-568.4,0.00020096,2]
[376232377,1753901435607,-460.0,0.00020096,2]
[376232378,1753901435620,-460.0,0.00020096,2]
[376232379,1753901435631,-460.0,0.00020096,2]
[376232380,1753901435641,-460.0,0.00020096,2]
[376232381,1753901435656,-460.0,0.00020096,2]
[376232382,1753901435666,-460.0,0.00020096,2]
[376232383,1753901435676,-532.04,0.00020097,2]
[376232384,1753901435687,-529.62,0.00020097,2]
[376232385,1753901435698,-460.0,0.00020097,2]
[376232386,1753901435710,-460.0,0.00020097,2]
[376232387,1753901435720,-460.0,0.00020097,2]